[Event "Early-Titled-Tuesday-Blitz-January-16-2024"]
[Site "Chess.com"]
[Date "2024.01.16"]
[Round "4"]
[White "Mops_2004"]
[Black "Levanzovsky"]
[Result "1-0"]
[WhiteElo "2675"]
[BlackElo "2469"]
[TimeControl "180+1"]
[EndTime "8:42:55 PST"]
[Termination "Mops_2004 won by resignation"]

1. Nf3 {[%clk 0:03:00.9]} 1... c5 {[%clk 0:02:55.4]} 2. c4 {[%clk 0:03:00.2]}
2... Nf6 {[%clk 0:02:54.6]} 3. Nc3 {[%clk 0:02:59]} 3... Nc6 {[%clk 0:02:50.4]}
4. d4 {[%clk 0:02:58.8]} 4... cxd4 {[%clk 0:02:50.2]} 5. Nxd4 {[%clk 0:02:59]}
5... g6 {[%clk 0:02:44.5]} 6. e4 {[%clk 0:02:58.7]} 6... d6 {[%clk 0:02:45.1]}
7. Be2 {[%clk 0:02:58.3]} 7... Nxd4 {[%clk 0:02:45.7]} 8. Qxd4 {[%clk
0:02:58.2]} 8... Bg7 {[%clk 0:02:46.1]} 9. Be3 {[%clk 0:02:58.6]} 9... O-O
{[%clk 0:02:46.3]} 10. Qd3 {[%clk 0:02:58.8]} 10... Qa5 {[%clk 0:02:41]} 11. O-O
{[%clk 0:02:57.7]} 11... Be6 {[%clk 0:02:41]} 12. Bd4 {[%clk 0:02:49.1]} 12...
Rfc8 {[%clk 0:02:28.1]} 13. b3 {[%clk 0:02:48.7]} 13... a6 {[%clk 0:02:26.9]}
14. f4 {[%clk 0:02:43.6]} 14... b5 {[%clk 0:02:02.3]} 15. cxb5 {[%clk
0:02:42.6]} 15... axb5 {[%clk 0:02:03.2]} 16. Nxb5 {[%clk 0:02:42.9]} 16... Bd7
{[%clk 0:01:34.5]} 17. a4 {[%clk 0:02:38.7]} 17... Qb4 {[%clk 0:01:21.9]} 18. e5
{[%clk 0:02:33.5]} 18... Bf5 {[%clk 0:00:55.2]} 19. Qf3 {[%clk 0:02:21.5]} 19...
Ne4 {[%clk 0:00:43.5]} 20. Qe3 {[%clk 0:02:10.7]} 20... dxe5 {[%clk 0:00:32.7]}
21. Bxe5 {[%clk 0:02:03.1]} 21... Bxe5 {[%clk 0:00:27.4]} 22. fxe5 {[%clk
0:02:03.3]} 22... Nd2 {[%clk 0:00:21.7]} 23. Rf4 {[%clk 0:01:55.4]} 23... Qc5
{[%clk 0:00:16.7]} 24. Qxc5 {[%clk 0:01:54.5]} 24... Rxc5 {[%clk 0:00:17.6]} 25.
Nd4 {[%clk 0:01:38.7]} 25... Rxe5 {[%clk 0:00:15]} 26. Rd1 {[%clk 0:01:22.9]}
26... Nxb3 {[%clk 0:00:12.8]} 27. Nxf5 {[%clk 0:00:50.1]} 27... gxf5 {[%clk
0:00:09]} 28. Bc4 {[%clk 0:00:45.6]} 28... Rxa4 {[%clk 0:00:04.1]} 29. Bxf7+
{[%clk 0:00:42.7]} 29... Kxf7 {[%clk 0:00:03.5]} 30. Rxa4 {[%clk 0:00:43.6]}
30... Nc5 {[%clk 0:00:03.8]} 31. Ra5 {[%clk 0:00:43]} 31... Kf6 {[%clk
0:00:01.9]} 32. Rb1 {[%clk 0:00:39]} 32... Ne4 {[%clk 0:00:02.2]} 33. Rb6+
{[%clk 0:00:38.4]} 33... e6 {[%clk 0:00:02.8]} 34. Ra7 {[%clk 0:00:32.6]} 34...
Rd5 {[%clk 0:00:03]} 35. Rb1 {[%clk 0:00:25]} 35... h5 {[%clk 0:00:03]} 36. Raa1
{[%clk 0:00:20.4]} 36... Rd2 {[%clk 0:00:03]} 37. Rd1 {[%clk 0:00:20.2]} 37...
Rc2 {[%clk 0:00:02.8]} 38. Rac1 {[%clk 0:00:20.2]} 38... Re2 {[%clk 0:00:03.2]}
39. Re1 {[%clk 0:00:20]} 39... Rb2 {[%clk 0:00:03.5]} 40. Rc4 {[%clk 0:00:19.6]}
40... h4 {[%clk 0:00:03.1]} 41. Rc8 {[%clk 0:00:17.9]} 41... Ke5 {[%clk
0:00:03.3]} 42. Rh8 {[%clk 0:00:17.9]} 42... Kf4 {[%clk 0:00:01.8]} 43. Rxh4+
{[%clk 0:00:18.2]} 43... Kg5 {[%clk 0:00:02.7]} 44. Rhxe4 {[%clk 0:00:17.3]}
44... fxe4 {[%clk 0:00:02.8]} 45. Rxe4 {[%clk 0:00:18.2]} 45... Kf5 {[%clk
0:00:03.4]} 46. Re1 {[%clk 0:00:18.2]} 46... e5 {[%clk 0:00:03.6]} 47. Rf1+
{[%clk 0:00:17.6]} 47... Kg5 {[%clk 0:00:03.4]} 48. g3 {[%clk 0:00:16.9]} 48...
e4 {[%clk 0:00:03.8]} 49. Rf2 {[%clk 0:00:17.1]} 49... Rb1+ {[%clk 0:00:04.1]}
50. Kg2 {[%clk 0:00:17.5]} 50... Rb6 {[%clk 0:00:02.6]} 51. h4+ {[%clk
0:00:17.4]} 51... Kg6 {[%clk 0:00:02.3]} 52. Rf4 {[%clk 0:00:16.1]} 52... Rb2+
{[%clk 0:00:02.6]} 53. Kh3 {[%clk 0:00:15.7]} 53... e3 {[%clk 0:00:03.2]} 54.
Re4 {[%clk 0:00:15.4]} 54... e2 {[%clk 0:00:03.5]} 55. g4 {[%clk 0:00:08.1]}
55... Rb3+ {[%clk 0:00:03.3]} 56. Kg2 {[%clk 0:00:08.3]} 56... Rb2 {[%clk
0:00:02.8]} 57. Kf3 {[%clk 0:00:07.8]} 57... Rb3+ {[%clk 0:00:01.7]} 58. Kxe2
{[%clk 0:00:07.1]} 58... Rh3 {[%clk 0:00:02.6]} 59. g5 {[%clk 0:00:05.7]} 59...
Kf5 {[%clk 0:00:03]} 60. Rc4 {[%clk 0:00:05.9]} 60... Ra3 {[%clk 0:00:03.1]} 61.
Kf2 {[%clk 0:00:05.1]} 61... Rb3 {[%clk 0:00:02.5]} 62. Kg2 {[%clk 0:00:04.6]}
62... Ra3 {[%clk 0:00:02.7]} 63. Rc5+ {[%clk 0:00:04.3]} 63... Kg4 {[%clk
0:00:03]} 64. Rc4+ {[%clk 0:00:04.4]} 64... Kf5 {[%clk 0:00:03.3]} 65. Rc8
{[%clk 0:00:05.1]} 65... Kg4 {[%clk 0:00:02.9]} 66. Rh8 {[%clk 0:00:05.7]} 66...
Ra2+ {[%clk 0:00:02.8]} 67. Kf1 {[%clk 0:00:06.2]} 67... Ra1+ {[%clk 0:00:03]}
68. Ke2 {[%clk 0:00:06.6]} 68... Ra2+ {[%clk 0:00:02.9]} 69. Kd3 {[%clk
0:00:07.1]} 69... Rf2 {[%clk 0:00:02.9]} 70. g6 {[%clk 0:00:06.5]} 70... Rf3+
{[%clk 0:00:01.7]} 71. Ke4 {[%clk 0:00:06.1]} 71... Rf4+ {[%clk 0:00:01.8]} 72.
Ke5 {[%clk 0:00:06.4]} 1-0

[Event "Early-Titled-Tuesday-Blitz-January-16-2024"]
[Site "Chess.com"]
[Date "2024.01.16"]
[Round "4"]
[White "supereagles1201"]
[Black "Vesper2018"]
[Result "0-1"]
[WhiteElo "2364"]
[BlackElo "2552"]
[TimeControl "180+1"]
[EndTime "8:42:56 PST"]
[Termination "Vesper2018 won on time"]

1. d4 {[%clk 0:03:00.9]} 1... Nf6 {[%clk 0:02:58.8]} 2. Bg5 {[%clk 0:02:58.9]}
2... d5 {[%clk 0:02:57.5]} 3. e3 {[%clk 0:02:58.9]} 3... g6 {[%clk 0:02:50.2]}
4. Bxf6 {[%clk 0:02:51]} 4... exf6 {[%clk 0:02:50.2]} 5. c4 {[%clk 0:02:51.8]}
5... dxc4 {[%clk 0:02:47]} 6. Bxc4 {[%clk 0:02:52.7]} 6... Bd6 {[%clk
0:02:47.1]} 7. Nc3 {[%clk 0:02:52.3]} 7... c6 {[%clk 0:02:42.2]} 8. Nf3 {[%clk
0:02:48.2]} 8... O-O {[%clk 0:02:41.8]} 9. h4 {[%clk 0:02:45.1]} 9... h5 {[%clk
0:02:29.4]} 10. Qc2 {[%clk 0:02:43.1]} 10... Kg7 {[%clk 0:02:29.2]} 11. Bd3
{[%clk 0:02:32.2]} 11... Re8 {[%clk 0:02:21.4]} 12. O-O-O {[%clk 0:02:29.9]}
12... Nd7 {[%clk 0:02:04.5]} 13. Ne4 {[%clk 0:02:01.3]} 13... Nb6 {[%clk
0:01:54.7]} 14. Nxd6 {[%clk 0:01:57.1]} 14... Qxd6 {[%clk 0:01:54.5]} 15. Kb1
{[%clk 0:01:56.9]} 15... Nd5 {[%clk 0:01:52.6]} 16. a3 {[%clk 0:01:46.8]} 16...
Bd7 {[%clk 0:01:52.3]} 17. Nd2 {[%clk 0:01:43.5]} 17... f5 {[%clk 0:01:47.5]}
18. Nc4 {[%clk 0:01:42.3]} 18... Qe7 {[%clk 0:01:47.8]} 19. Ne5 {[%clk
0:01:41.2]} 19... Rac8 {[%clk 0:01:44.9]} 20. Bc4 {[%clk 0:01:27.2]} 20... f6
{[%clk 0:01:41.3]} 21. Nxd7 {[%clk 0:01:14.1]} 21... Qxd7 {[%clk 0:01:41.1]} 22.
Rc1 {[%clk 0:01:11]} 22... Qd6 {[%clk 0:01:25.1]} 23. g3 {[%clk 0:01:07.2]}
23... Nc7 {[%clk 0:01:16.6]} 24. Bb3 {[%clk 0:01:03.9]} 24... Ne6 {[%clk
0:01:01]} 25. Qc4 {[%clk 0:00:53.5]} 25... Re7 {[%clk 0:00:59.5]} 26. Rc2 {[%clk
0:00:52]} 26... c5 {[%clk 0:00:53.7]} 27. dxc5 {[%clk 0:00:48]} 27... Rxc5
{[%clk 0:00:44.6]} 28. Qb4 {[%clk 0:00:42.6]} 28... a5 {[%clk 0:00:44.5]} 29.
Qd2 {[%clk 0:00:42.3]} 29... Qb6 {[%clk 0:00:31.8]} 30. Ba2 {[%clk 0:00:39.3]}
30... Rec7 {[%clk 0:00:20.7]} 31. Rhc1 {[%clk 0:00:38.8]} 31... Rxc2 {[%clk
0:00:15.8]} 32. Rxc2 {[%clk 0:00:39.7]} 32... Rxc2 {[%clk 0:00:16]} 33. Qxc2
{[%clk 0:00:39.4]} 33... Kf7 {[%clk 0:00:14]} 34. Qc4 {[%clk 0:00:38.6]} 34...
Ke7 {[%clk 0:00:13.8]} 35. Qxe6+ {[%clk 0:00:32.3]} 35... Qxe6 {[%clk
0:00:13.9]} 36. Bxe6 {[%clk 0:00:32.6]} 36... Kxe6 {[%clk 0:00:14]} 37. Kc2
{[%clk 0:00:32.4]} 37... Kd5 {[%clk 0:00:13.8]} 38. f3 {[%clk 0:00:31]} 38... a4
{[%clk 0:00:13.1]} 39. b3 {[%clk 0:00:28.7]} 39... axb3+ {[%clk 0:00:12.4]} 40.
Kxb3 {[%clk 0:00:29.4]} 40... g5 {[%clk 0:00:12.9]} 41. Kc3 {[%clk 0:00:18.1]}
41... Ke5 {[%clk 0:00:10.1]} 42. Kd3 {[%clk 0:00:16.9]} 42... b5 {[%clk
0:00:08.7]} 43. e4 {[%clk 0:00:13.8]} 43... g4 {[%clk 0:00:07.5]} 44. f4+ {[%clk
0:00:09.8]} 44... Ke6 {[%clk 0:00:07.2]} 45. Kd4 {[%clk 0:00:09.4]} 45... fxe4
{[%clk 0:00:03.5]} 46. Kxe4 {[%clk 0:00:10.3]} 46... f5+ {[%clk 0:00:04.2]} 47.
Kd4 {[%clk 0:00:09.8]} 47... Kd6 {[%clk 0:00:04.9]} 48. Kd3 {[%clk 0:00:09.6]}
48... Kd5 {[%clk 0:00:05.2]} 49. Kc3 {[%clk 0:00:09.7]} 49... Ke4 {[%clk
0:00:04.3]} 50. Kb4 {[%clk 0:00:10]} 50... Kf3 {[%clk 0:00:04.8]} 51. Kxb5
{[%clk 0:00:10.6]} 51... Kxg3 {[%clk 0:00:05.3]} 52. a4 {[%clk 0:00:11.3]} 52...
Kxh4 {[%clk 0:00:05.3]} 53. a5 {[%clk 0:00:12.2]} 53... g3 {[%clk 0:00:05.8]}
54. a6 {[%clk 0:00:13.1]} 54... g2 {[%clk 0:00:06.4]} 55. a7 {[%clk 0:00:13.8]}
55... g1=Q {[%clk 0:00:06.7]} 56. a8=Q {[%clk 0:00:13.8]} 56... Qf1+ {[%clk
0:00:07]} 57. Kb4 {[%clk 0:00:13.3]} 57... Qxf4+ {[%clk 0:00:07.1]} 58. Kc5
{[%clk 0:00:12.4]} 58... Qe5+ {[%clk 0:00:07.3]} 59. Kb6 {[%clk 0:00:11.5]}
59... Qd4+ {[%clk 0:00:07.8]} 60. Kb5 {[%clk 0:00:11.4]} 60... Qe4 {[%clk
0:00:07.9]} 61. Qd8+ {[%clk 0:00:09.3]} 61... Kg4 {[%clk 0:00:07.7]} 62. Qg8+
{[%clk 0:00:09.7]} 62... Kf3 {[%clk 0:00:07.8]} 63. Qh7 {[%clk 0:00:08.7]} 63...
Qg4 {[%clk 0:00:07.1]} 64. Qb7+ {[%clk 0:00:07.3]} 64... Kf2 {[%clk 0:00:07.4]}
65. Qd7 {[%clk 0:00:04.5]} 65... f4 {[%clk 0:00:07.1]} 66. Qd4+ {[%clk
0:00:03.9]} 66... Kg2 {[%clk 0:00:07.4]} 67. Qd2+ {[%clk 0:00:03.6]} 67... Kh3
{[%clk 0:00:07.3]} 68. Qd3+ {[%clk 0:00:03.2]} 68... f3 {[%clk 0:00:07.2]} 69.
Qf1+ {[%clk 0:00:01.7]} 69... Qg2 {[%clk 0:00:07.1]} 70. Qd3 {[%clk 0:00:02.2]}
70... h4 {[%clk 0:00:06.2]} 71. Qf5+ {[%clk 0:00:01.8]} 71... Qg4 {[%clk
0:00:06.3]} 72. Qd3 {[%clk 0:00:02.3]} 72... Qg5+ {[%clk 0:00:06.2]} 73. Kb4
{[%clk 0:00:01.3]} 73... Qf4+ {[%clk 0:00:06.3]} 74. Kb3 {[%clk 0:00:01.5]}
74... Kg2 {[%clk 0:00:06.6]} 0-1

[Event "Early-Titled-Tuesday-Blitz-January-16-2024"]
[Site "Chess.com"]
[Date "2024.01.16"]
[Round "4"]
[White "artin10862"]
[Black "DenLaz"]
[Result "1/2-1/2"]
[WhiteElo "2905"]
[BlackElo "3086"]
[TimeControl "180+1"]
[EndTime "8:42:58 PST"]
[Termination "Game drawn - insufficient material"]

1. d4 {[%clk 0:03:00.9]} 1... f5 {[%clk 0:03:00.5]} 2. Nc3 {[%clk 0:02:52.6]}
2... Nf6 {[%clk 0:03:00.7]} 3. Bg5 {[%clk 0:02:52]} 3... d5 {[%clk 0:03:01.2]}
4. Bxf6 {[%clk 0:02:51.2]} 4... exf6 {[%clk 0:03:01]} 5. e3 {[%clk 0:02:51.2]}
5... Be6 {[%clk 0:03:01.5]} 6. Bd3 {[%clk 0:02:47.5]} 6... Qd7 {[%clk
0:03:00.3]} 7. h4 {[%clk 0:02:37.5]} 7... Nc6 {[%clk 0:02:59.3]} 8. h5 {[%clk
0:02:34.2]} 8... O-O-O {[%clk 0:02:57.3]} 9. Nge2 {[%clk 0:02:31.4]} 9... Kb8
{[%clk 0:02:55.1]} 10. Nf4 {[%clk 0:02:25.1]} 10... Bf7 {[%clk 0:02:54.7]} 11.
Qf3 {[%clk 0:02:25]} 11... Nb4 {[%clk 0:02:52.6]} 12. O-O-O {[%clk 0:02:21.9]}
12... Nxd3+ {[%clk 0:02:46.2]} 13. Nxd3 {[%clk 0:02:16.5]} 13... c6 {[%clk
0:02:44]} 14. Kb1 {[%clk 0:02:10.9]} 14... Bd6 {[%clk 0:02:42.6]} 15. Rh4 {[%clk
0:02:07.3]} 15... Rhe8 {[%clk 0:02:22.9]} 16. Ne2 {[%clk 0:01:41.8]} 16... a6
{[%clk 0:02:07.3]} 17. Ng3 {[%clk 0:01:36.7]} 17... g6 {[%clk 0:02:06.1]} 18.
hxg6 {[%clk 0:01:35.3]} 18... hxg6 {[%clk 0:02:07]} 19. Rdh1 {[%clk 0:01:31.1]}
19... Ka7 {[%clk 0:02:04.7]} 20. Rh7 {[%clk 0:01:30.1]} 20... Re7 {[%clk
0:02:04]} 21. Ne2 {[%clk 0:01:25.1]} 21... Rf8 {[%clk 0:01:56.9]} 22. R7h6
{[%clk 0:01:21.1]} 22... Be8 {[%clk 0:01:54.7]} 23. Nef4 {[%clk 0:01:20]} 23...
Rg7 {[%clk 0:01:54]} 24. Nc5 {[%clk 0:01:19.2]} 24... Bxc5 {[%clk 0:01:49]} 25.
dxc5 {[%clk 0:01:20.1]} 25... Qe7 {[%clk 0:01:49.2]} 26. Qd1 {[%clk 0:01:00.1]}
26... Bf7 {[%clk 0:01:47.3]} 27. Qd4 {[%clk 0:00:57.7]} 27... g5 {[%clk
0:01:32.5]} 28. Ne2 {[%clk 0:00:50.3]} 28... Bg6 {[%clk 0:01:26.4]} 29. Nc3
{[%clk 0:00:46.6]} 29... Qe5 {[%clk 0:01:23.4]} 30. Qb4 {[%clk 0:00:46.5]} 30...
f4 {[%clk 0:01:20.7]} 31. exf4 {[%clk 0:00:45.5]} 31... gxf4 {[%clk 0:01:20.9]}
32. Rh8 {[%clk 0:00:43.1]} 32... Rgg8 {[%clk 0:01:12.8]} 33. Rxg8 {[%clk
0:00:40.3]} 33... Rxg8 {[%clk 0:01:13.7]} 34. Na4 {[%clk 0:00:29.3]} 34... Qe4
{[%clk 0:01:01.5]} 35. Qxe4 {[%clk 0:00:25.4]} 35... Bxe4 {[%clk 0:00:43.8]} 36.
f3 {[%clk 0:00:25.3]} 36... Rxg2 {[%clk 0:00:36.1]} 37. fxe4 {[%clk 0:00:26.2]}
37... f3 {[%clk 0:00:35.8]} 38. Nc3 {[%clk 0:00:06.9]} 38... f2 {[%clk
0:00:36.2]} 39. Ne2 {[%clk 0:00:07.3]} 39... dxe4 {[%clk 0:00:36.6]} 40. Rf1
{[%clk 0:00:06.3]} 40... f5 {[%clk 0:00:28.8]} 41. Kc1 {[%clk 0:00:06.3]} 41...
f4 {[%clk 0:00:27.9]} 42. Kd2 {[%clk 0:00:02]} 42... e3+ {[%clk 0:00:24.4]} 43.
Kd3 {[%clk 0:00:02.3]} 43... f3 {[%clk 0:00:23.6]} 44. Kxe3 {[%clk 0:00:02.7]}
44... fxe2 {[%clk 0:00:24.1]} 45. Kxe2 {[%clk 0:00:03.6]} 45... Rg5 {[%clk
0:00:23.2]} 46. Rxf2 {[%clk 0:00:04.5]} 46... Rxc5 {[%clk 0:00:23.5]} 47. Kd2
{[%clk 0:00:05.4]} 47... Kb6 {[%clk 0:00:24.2]} 48. Rf3 {[%clk 0:00:05.9]} 48...
Rd5+ {[%clk 0:00:24.9]} 49. Rd3 {[%clk 0:00:06.5]} 49... Rh5 {[%clk 0:00:22.5]}
50. Kc3 {[%clk 0:00:06.7]} 50... a5 {[%clk 0:00:22.5]} 51. a4 {[%clk 0:00:07.3]}
51... Kc5 {[%clk 0:00:22.9]} 52. Kb3 {[%clk 0:00:06.4]} 52... Rh4 {[%clk
0:00:22.7]} 53. Rc3+ {[%clk 0:00:06.5]} 53... Kd5 {[%clk 0:00:22.7]} 54. Rf3
{[%clk 0:00:07.4]} 54... Rb4+ {[%clk 0:00:22.7]} 55. Ka3 {[%clk 0:00:08]} 55...
Kc5 {[%clk 0:00:23.4]} 56. Rf5+ {[%clk 0:00:08]} 56... Kb6 {[%clk 0:00:24]} 57.
Rf3 {[%clk 0:00:08.7]} 57... Rh4 {[%clk 0:00:24.6]} 58. Rb3+ {[%clk 0:00:08.8]}
58... Kc7 {[%clk 0:00:25.2]} 59. Rc3 {[%clk 0:00:09.7]} 59... Rh1 {[%clk
0:00:24.7]} 60. Ka2 {[%clk 0:00:09.6]} 60... Rh4 {[%clk 0:00:23]} 61. Ka3 {[%clk
0:00:09.5]} 61... Kd6 {[%clk 0:00:22.4]} 62. Rd3+ {[%clk 0:00:09.6]} 62... Kc5
{[%clk 0:00:22.7]} 63. Rc3+ {[%clk 0:00:10.5]} 63... Rc4 {[%clk 0:00:22.4]} 64.
Kb3 {[%clk 0:00:10.1]} 64... Rxc3+ {[%clk 0:00:22.6]} 65. Kxc3 {[%clk 0:00:11]}
65... b6 {[%clk 0:00:23]} 66. b3 {[%clk 0:00:08]} 66... b5 {[%clk 0:00:20.1]}
67. axb5 {[%clk 0:00:05.8]} 67... cxb5 {[%clk 0:00:21]} 68. b4+ {[%clk
0:00:05.7]} 68... Kb6 {[%clk 0:00:21.2]} 69. bxa5+ {[%clk 0:00:05.7]} 69... Kxa5
{[%clk 0:00:22]} 70. Kb3 {[%clk 0:00:06.6]} 70... Kb6 {[%clk 0:00:22.7]} 71. Kb4
{[%clk 0:00:07.4]} 71... Kc6 {[%clk 0:00:23.4]} 72. c3 {[%clk 0:00:07.8]} 72...
Kb6 {[%clk 0:00:23.7]} 73. c4 {[%clk 0:00:08.5]} 73... bxc4 {[%clk 0:00:24.2]}
74. Kxc4 {[%clk 0:00:08.8]} 1/2-1/2

[Event "Early-Titled-Tuesday-Blitz-January-16-2024"]
[Site "Chess.com"]
[Date "2024.01.16"]
[Round "4"]
[White "krzyzan94"]
[Black "GrigorGrigorov"]
[Result "0-1"]
[WhiteElo "2808"]
[BlackElo "2948"]
[TimeControl "180+1"]
[EndTime "8:43:05 PST"]
[Termination "GrigorGrigorov won by checkmate"]

1. e4 {[%clk 0:02:53.9]} 1... c6 {[%clk 0:02:59.3]} 2. d4 {[%clk 0:02:53.7]}
2... d5 {[%clk 0:02:59.3]} 3. e5 {[%clk 0:02:54.5]} 3... Bf5 {[%clk 0:02:59.2]}
4. c4 {[%clk 0:02:54.6]} 4... e6 {[%clk 0:02:59.1]} 5. Nc3 {[%clk 0:02:54.5]}
5... Bb4 {[%clk 0:02:59.3]} 6. cxd5 {[%clk 0:02:53.7]} 6... cxd5 {[%clk
0:02:57]} 7. h4 {[%clk 0:02:53.8]} 7... h6 {[%clk 0:02:51.9]} 8. g4 {[%clk
0:02:53.5]} 8... Be4 {[%clk 0:02:46]} 9. f3 {[%clk 0:02:53.5]} 9... Bh7 {[%clk
0:02:45.5]} 10. h5 {[%clk 0:02:53.8]} 10... Nd7 {[%clk 0:02:40.6]} 11. Bd3
{[%clk 0:02:53.7]} 11... Bxc3+ {[%clk 0:02:39.6]} 12. bxc3 {[%clk 0:02:54.4]}
12... Bxd3 {[%clk 0:02:39.2]} 13. Qxd3 {[%clk 0:02:55.3]} 13... Qc7 {[%clk
0:02:38.9]} 14. Ne2 {[%clk 0:02:53.5]} 14... Ne7 {[%clk 0:02:37.3]} 15. f4
{[%clk 0:02:42.2]} 15... f5 {[%clk 0:02:33.3]} 16. Ba3 {[%clk 0:02:37.1]} 16...
Nb6 {[%clk 0:01:50.7]} 17. Bxe7 {[%clk 0:02:29.7]} 17... Qxe7 {[%clk 0:01:51.6]}
18. gxf5 {[%clk 0:02:30.3]} 18... O-O-O {[%clk 0:01:50]} 19. fxe6 {[%clk
0:02:27.6]} 19... Qxe6 {[%clk 0:01:49.5]} 20. Rg1 {[%clk 0:02:20.1]} 20... Rd7
{[%clk 0:01:41.7]} 21. Rg6 {[%clk 0:02:17.3]} 21... Qe8 {[%clk 0:01:38]} 22. f5
{[%clk 0:02:15.5]} 22... Rf8 {[%clk 0:01:35.5]} 23. e6 {[%clk 0:02:06.9]} 23...
Rc7 {[%clk 0:01:33]} 24. Nf4 {[%clk 0:01:53.8]} 24... Qe7 {[%clk 0:01:19.7]} 25.
Kf2 {[%clk 0:00:56.2]} 25... Kb8 {[%clk 0:00:51.8]} 26. Re1 {[%clk 0:00:54.5]}
26... Rfc8 {[%clk 0:00:29.1]} 27. Qg3 {[%clk 0:00:51.3]} 27... Ka8 {[%clk
0:00:22.4]} 28. Re3 {[%clk 0:00:48.9]} 28... Rf8 {[%clk 0:00:14.7]} 29. Qg4
{[%clk 0:00:37.2]} 29... Rfc8 {[%clk 0:00:10.7]} 30. f6 {[%clk 0:00:25.6]} 30...
gxf6 {[%clk 0:00:10.5]} 31. Rg8 {[%clk 0:00:26.3]} 31... a5 {[%clk 0:00:10.2]}
32. Rxc8+ {[%clk 0:00:24.1]} 32... Rxc8 {[%clk 0:00:11.1]} 33. Ng6 {[%clk
0:00:24.7]} 33... Qd6 {[%clk 0:00:10.9]} 34. e7 {[%clk 0:00:24.5]} 34... Re8
{[%clk 0:00:10.2]} 35. Qf4 {[%clk 0:00:21]} 35... Qd7 {[%clk 0:00:09.3]} 36.
Qxf6 {[%clk 0:00:20.7]} 36... Nc4 {[%clk 0:00:08.6]} 37. Re6 {[%clk 0:00:13.3]}
37... Nd2 {[%clk 0:00:08.3]} 38. Qe5 {[%clk 0:00:11.4]} 38... Ne4+ {[%clk
0:00:08.2]} 39. Kf3 {[%clk 0:00:09.7]} 39... Qb5 {[%clk 0:00:08]} 40. Kg4 {[%clk
0:00:04]} 40... Qe2+ {[%clk 0:00:07.8]} 41. Kf5 {[%clk 0:00:02.6]} 41... Qxh5+
{[%clk 0:00:07.2]} 42. Kf4 {[%clk 0:00:03.2]} 42... Qh2+ {[%clk 0:00:06.7]} 43.
Kf5 {[%clk 0:00:03.8]} 43... Qh5+ {[%clk 0:00:06.4]} 44. Kf4 {[%clk 0:00:04.1]}
44... Qh2+ {[%clk 0:00:06.4]} 45. Kf5 {[%clk 0:00:04.7]} 45... Qf2+ {[%clk
0:00:05.6]} 46. Qf4 {[%clk 0:00:03]} 46... Qc2 {[%clk 0:00:06.4]} 47. Ke5 {[%clk
0:00:03.3]} 47... Qe2 {[%clk 0:00:06.1]} 48. Kxd5 {[%clk 0:00:02.7]} 48... Nxc3+
{[%clk 0:00:06.3]} 49. Kd6 {[%clk 0:00:01.7]} 49... Qa6+ {[%clk 0:00:06.3]} 50.
Ke5 {[%clk 0:00:01.9]} 50... Qe2+ {[%clk 0:00:05.7]} 51. Kd6 {[%clk 0:00:02.2]}
51... Qa6+ {[%clk 0:00:05.9]} 52. Kd7 {[%clk 0:00:01.7]} 52... Qb5+ {[%clk
0:00:06]} 53. Kd6 {[%clk 0:00:02.3]} 53... Qd5+ {[%clk 0:00:06]} 54. Kc7 {[%clk
0:00:02.8]} 54... Nb5+ {[%clk 0:00:06.3]} 55. Kb6 {[%clk 0:00:02.9]} 55... Qxe6+
{[%clk 0:00:06.6]} 56. Kxb5 {[%clk 0:00:03.4]} 56... Qxg6 {[%clk 0:00:07.2]} 57.
Qc7 {[%clk 0:00:03]} 57... Qc6+ {[%clk 0:00:07.1]} 58. Qxc6 {[%clk 0:00:03.1]}
58... bxc6+ {[%clk 0:00:08]} 59. Kxc6 {[%clk 0:00:02.9]} 59... Rxe7 {[%clk
0:00:08.7]} 60. d5 {[%clk 0:00:03.8]} 60... Rh7 {[%clk 0:00:09.3]} 61. d6 {[%clk
0:00:04.7]} 61... h5 {[%clk 0:00:09.9]} 62. d7 {[%clk 0:00:05]} 62... Rxd7
{[%clk 0:00:10]} 63. Kxd7 {[%clk 0:00:04.5]} 63... h4 {[%clk 0:00:10.9]} 64. Kc6
{[%clk 0:00:04.4]} 64... h3 {[%clk 0:00:11.8]} 65. Kb6 {[%clk 0:00:04.5]} 65...
h2 {[%clk 0:00:12.7]} 66. a4 {[%clk 0:00:03.7]} 66... h1=Q {[%clk 0:00:13]} 67.
Kb5 {[%clk 0:00:04.4]} 67... Qb1+ {[%clk 0:00:12.7]} 68. Ka6 {[%clk 0:00:04.7]}
68... Qc2 {[%clk 0:00:11.1]} 69. Kb5 {[%clk 0:00:04.8]} 69... Qb3+ {[%clk
0:00:11.1]} 70. Kxa5 {[%clk 0:00:04.2]} 70... Qc4 {[%clk 0:00:10.9]} 71. Kb6
{[%clk 0:00:03.8]} 71... Qxa4 {[%clk 0:00:11.2]} 72. Kc7 {[%clk 0:00:01.9]}
72... Qb5 {[%clk 0:00:11.3]} 73. Kc8 {[%clk 0:00:02.2]} 73... Qb6 {[%clk
0:00:10.9]} 74. Kd7 {[%clk 0:00:02.4]} 74... Qc5 {[%clk 0:00:11.2]} 75. Kd8
{[%clk 0:00:02.7]} 75... Qc6 {[%clk 0:00:11.5]} 76. Ke7 {[%clk 0:00:03]} 76...
Qd5 {[%clk 0:00:11.7]} 77. Kf8 {[%clk 0:00:03.7]} 77... Qe6 {[%clk 0:00:11.8]}
78. Kg7 {[%clk 0:00:04]} 78... Qf5 {[%clk 0:00:11.6]} 79. Kh8 {[%clk 0:00:04.6]}
79... Qg5 {[%clk 0:00:11.4]} 80. Kh7 {[%clk 0:00:04.9]} 80... Kb7 {[%clk
0:00:11.8]} 81. Kh8 {[%clk 0:00:05.8]} 81... Kc7 {[%clk 0:00:12.7]} 82. Kh7
{[%clk 0:00:06.5]} 82... Kd7 {[%clk 0:00:13.6]} 83. Kh8 {[%clk 0:00:07.4]} 83...
Ke7 {[%clk 0:00:14.4]} 84. Kh7 {[%clk 0:00:07.3]} 84... Kf7 {[%clk 0:00:14.9]}
85. Kh8 {[%clk 0:00:08.2]} 85... Qh5# {[%clk 0:00:15.2]} 0-1